Cogmind - Beta 15 @@@ ROGUE MODE // 2025.10.08 @ 23:45:02 Player: DietSnapple Result: Destroyed by D-53 Grenadier with Mini Grenade Launcher Performance ------------- Evolutions (0) 0 Regions Visited (4) 800 Robots Destroyed (15) 75 Value Destroyed (342) 342 Prototype IDs (23) 460 Alien Tech Used (0) 0 Bonus (300) 300 TOTAL SCORE: 1977 Bonus ------- Aligned with FarCom 300 Cogmind --------- Core Integrity 0/250 Matter 283/300 Energy 100/100 System Corruption 0% Temperature Cool (20) Movement Core (50) Location -9/Mines Parts ------- > --- POWER (1) -------- (None) > --- PROPULSION (2) --- (None) > --- UTILITY (2) ------ (None) > --- WEAPON (2) ------- (None) > --- INVENTORY (5) ---- Structural Scanner Signal Interpreter Cloak of Protection Hacking Suite Peak State ------------ > --- POWER ------------ Ion Engine > --- PROPULSION ------- Light Treads Light Treads > --- UTILITY ---------- Medium Storage Unit Cloak of Protection > --- WEAPON ----------- Light Assault Rifle Heavy Hammer > --- INVENTORY -------- Ion Engine Improved Heat Sink Structural Scanner Signal Interpreter Seismic Detector Hacking Suite [Rating: 16] Favorites ----------- Power Ion Engine Engine Ion Engine Propulsion Light Treads Treads Light Treads Wheel Compact Wheel Utility Medium Storage Unit Device Seismic Detector Storage Medium Storage Unit Protection Light Armor Plating Weapon Heavy EM Pulse Gun Energy Gun Heavy EM Pulse Gun Ballistic Gun Light Assault Rifle Impact Weapon Heavy Hammer Build | -11 -10 -10 -10 -9 ------- Run | Yrd Mat Min Exi Min Slots Evolved . | . . . . . Power . | . . . . . Propulsion . | . . . . . Utility . | . . . . . Weapon . | . . . . . Parts Attached 18 | 6 7 2 2 1 Power 2 | 1 1 . . . Engine 2 | 1 1 . . . Core . | . . . . . Reactor . | . . . . . Propulsion 5 | 4 1 . . . Treads 3 | 2 1 . . . Leg . | . . . . . Wheel 2 | 2 . . . . Hover . | . . . . . Flight . | . . . . . Utility 7 | 1 3 . 2 1 Device 3 | . 2 . 1 . Storage 3 | 1 1 . 1 . Processor . | . . . . . Hackware . | . . . . . Protection 1 | . . . . 1 Artifact . | . . . . . Weapon 4 | . 2 2 . . Energy Gun 2 | . 2 . . . Energy Cannon . | . . . . . Ballistic Gun 1 | . . 1 . . Ballistic Cannon . | . . . . . Launcher . | . . . . . Special Weapon . | . . . . . Impact Weapon 1 | . . 1 . . Slashing Weapon . | . . . . . Piercing Weapon . | . . . . . Special Melee Weapon . | . . . . . Unidentified Prototypes . | . . . . . Parts Lost 4 | . 4 . . . Power . | . . . . . Propulsion 1 | . 1 . . . Utility 1 | . 1 . . . Weapon 2 | . 2 . . . Highest Loss Streak 4 | . 4 . . . To Critical Strikes . | . . . . . Average Backups 6 | 4 7 7 6 6 Power . | . . 1 1 . Propulsion 1 | 1 2 1 . . Utility 3 | . 2 5 5 5 Weapon 1 | 2 2 . . . Tool/Special . | . . . . . Unused Backups 11 | . 5 . 1 5 Power 2 | . 1 . . 1 Propulsion 3 | . 2 . 1 . Utility 4 | . . . . 4 Weapon 2 | . 2 . . . Tool/Special . | . . . . . Average Slot Usage (%) 92 | . 93 84 91 100 Engine 14 | . 14 14 14 14 Treads 28 | . 28 28 28 28 Device 9 | . 12 . 6 4 Storage 14 | . 14 14 14 14 Energy Gun 13 | . 22 . . . Ballistic Gun 5 | . . 14 14 14 Impact Weapon 5 | . . 13 14 14 Peak Build Rating 16 | 4 10 8 16 9 Average Rating 8 | 3 9 7 8 8 On Entrance 5 | . 4 5 8 9 Naked Turns 5 | . . . . 5 Heaviest Build 32 | 10 22 19 30 32 Greatest Support 40 | 40 40 40 40 40 Greatest Overweight (x) . | . . . . . Average Overweight (x) . | . . . . . Largest Inventory Capacity 15 | 8 10 10 15 15 Average Capacity 9 | 6 8 10 10 13 Most Carried 10 | 6 10 8 7 7 Average Carried 7 | 4 7 7 6 6 Final Capacity 15 | 8 10 10 15 5 Final Carried 9 | 6 9 7 7 4 Class Distribution -------------------- 100% | Mutant Dominant Class ---------------- Mutant | -10/Materials Mutant | -10/Mines Mutant | -10/Exiles Mutant | -9/Mines Resources | -11 -10 -10 -10 -9 ----------- Run | Yrd Mat Min Exi Min Matter Collected 358 | 219 101 . . 38 Remotely . | . . . . . Salvage Created 454 | . 454 . . . Parts 30 | . 30 . . . Haulers Intercepted 1 | . 1 . . . Recyclers Shooed . | . . . . . Parts Field Recycled . | . . . . . Retrieved Matter . | . . . . . Parts Self-Destructed . | . . . . . Prevented . | . . . . . Kills | -11 -10 -10 -10 -9 ------- Run | Yrd Mat Min Exi Min Combat Hostiles Destroyed 11 | . 11 . . . Guns 11 | . 11 . . . Classes Destroyed 6 | . 6 . . . Worker 1 | . 1 . . . Hauler 1 | . 1 . . . Operator 1 | . 1 . . . Watcher 1 | . 1 . . . Swarmer 5 | . 5 . . . Grunt 6 | . 6 . . . Best Kill Streak 5 | . 5 . . . Combat Bots Only 5 | . 5 . . . Max Kills in Single Turn 2 | . 2 . . . Gunslinging 1 | . 1 . . . Exploded . | . . . . . Melee . | . . . . . Uniques/NPCs Destroyed . | . . . . . Combat | -11 -10 -10 -10 -9 -------- Run | Yrd Mat Min Exi Min Hostile Shots Fired 69 | . 55 . . 14 Missed 16 | . 11 . . 5 Hits 53 | . 44 . . 9 Melee 1 | . . . . 1 Projectile 52 | . 44 . . 8 AOE 10 | . . . . 10 Damage Taken 924 | . 604 . . 320 Core 261 | . 88 . . 173 Absorbed by Shields . | . . . . . Core Remaining (%) 100 | 100 . . . . Volleys Fired 23 | . 23 . . . Largest 2 | . 2 . . . Hottest 90 | . 90 . . . Shots Fired 45 | . 45 . . . Gun 45 | . 45 . . . Cannon . | . . . . . Launcher . | . . . . . Special . | . . . . . Kinetic . | . . . . . Thermal . | . . . . . Explosive . | . . . . . Electromagnetic 45 | . 45 . . . Robot Hit Streak 8 | . 8 . . . Robot Miss Streak 3 | . 3 . . . Penetration Max . | . . . . . Secondary Targets 1 | . 1 . . . Max Gunslinging Chain 1 | . 1 . . . Shots Hit Robots 29 | . 29 . . . Core Hits 16 | . 15 . . 1 Critical Kills . | . . . . . Critical Parts Destroyed . | . . . . . Critical Strikes 2 | . 2 . . . Corrupt 2 | . 2 . . . Melee Attacks . | . . . . . Impact . | . . . . . Slashing . | . . . . . Piercing . | . . . . . Sneak Attacks . | . . . . . Combat Hostiles . | . . . . . Follow-up Attacks . | . . . . . Damage Inflicted 544 | . 542 . . 2 Guns 440 | . 440 . . . Cannons . | . . . . . Explosions 102 | . 102 . . . Melee . | . . . . . Ramming 2 | . . . . 2 Kinetic . | . . . . . Thermal 4 | . 4 . . . Explosive 98 | . 98 . . . Electromagnetic 440 | . 440 . . . Impact . | . . . . . Slashing . | . . . . . Piercing . | . . . . . Highest Corruption . | . . . . . Average Corruption . | . . . . . Corruption Purged . | . . . . . Corruption Blocked . | . . . . . Overload Shots . | . . . . . Overflow Damage 72 | . 72 . . . Projectiles . | . . . . . Explosions 72 | . 72 . . . Melee . | . . . . . Knockbacks . | . . . . . Impact . | . . . . . Kinetic . | . . . . . Secondary . | . . . . . Self-Inflicted Damage 210 | . 209 . . 1 Shots 3 | . 3 . . . Rammed 1 | . . . . 1 Targets Rammed 1 | . . . . 1 Kicked . | . . . . . Crushed . | . . . . . Highest Temperature 294 | . 294 . . . Average Temperature 91 | . 91 . . . Received Heat Transfer 80 | . 60 . . 20 Siege Activations . | . . . . . Martial Activations . | . . . . . Shielding Activations . | . . . . . Robots Disrupted . | . . . . . Combat Hostiles . | . . . . . Robots Corrupted . | . . . . . Combat Hostiles . | . . . . . Parts Fried 2 | . 2 . . . Impact Corruptions . | . . . . . Robots Melted . | . . . . . Combat Hostiles . | . . . . . Parts Melted . | . . . . . Heat Transferred 50 | . 50 . . . Parts Sabotaged . | . . . . . Parts Stolen . | . . . . . Parts Stripped . | . . . . . Power Chain Reactions . | . . . . . Alert | -11 -10 -10 -10 -9 ------- Run | Yrd Mat Min Exi Min Maximum Alert Level . | . . . . . Low Security (%) 100 | 100 100 100 . 100 Level 1 . | . . . . . Level 2 . | . . . . . Level 3 . | . . . . . Level 4 . | . . . . . Level 5 . | . . . . . High Security . | . . . . . Max Security . | . . . . . Peak Influence 173 | . 173 64 . . Initial 64 | . . 64 . . Average 23 | . 28 20 . . Influence Increases 493 | . 493 . . . Destroy 0b10 Robot/C 220 | . 220 . . . Destroy 0b10 Robot/NC 20 | . 20 . . . Destroy Leader 54 | . 54 . . . Successful Hack 35 | . 35 . . . Disable Machine 60 | . 60 . . . Destroy Structure 59 | . 59 . . . Lose Combat Pursuer 45 | . 45 . . . Influence Decreases 493 | . 326 167 . . Entered New Map 103 | . . 103 . . Time Decay 350 | . 286 64 . . Lost Part 40 | . 40 . . . Squads Dispatched 3 | . 3 . . . Investigation 3 | . 3 . . . Extermination . | . . . . . Reinforcement . | . . . . . Assault . | . . . . . Garrison . | . . . . . Intercept . | . . . . . Searches Triggered . | . . . . . Construction Impeded . | . . . . . Haulers Reinforced . | . . . . . Active Scanning Responses . | . . . . . Cargo Convoy Interrupts . | . . . . . Stealth | -11 -10 -10 -10 -9 --------- Run | Yrd Mat Min Exi Min Distress Signals . | . . . . . Communications Jammed . | . . . . . Distress Signals . | . . . . . Times Spotted 29 | . 20 . . 9 Peak Tracking Total 10 | . 5 . . 10 Tactical Retreats 2 | . 2 . . . Traps | -11 -10 -10 -10 -9 ------- Run | Yrd Mat Min Exi Min Traps Triggered 3 | . 3 . . . Indirectly . | . . . . . Trap Hack Attempts . | . . . . . Triggered . | . . . . . Disarmed . | . . . . . Reprogrammed . | . . . . . Reused . | . . . . . Traps Extracted . | . . . . . Installed . | . . . . . Triggered . | . . . . . Machines | -11 -10 -10 -10 -9 ---------- Run | Yrd Mat Min Exi Min Machines Disabled 4 | . 4 . . . Max in Single Turn 2 | . 2 . . . Machines Repaired . | . . . . . Machines Dismantled . | . . . . . Machines Sabotaged . | . . . . . Overloaded Fab Kills . | . . . . . Hacking | -11 -10 -10 -10 -9 --------- Run | Yrd Mat Min Exi Min Machines Accessed 6 | . 5 . 1 . Terminals 4 | . 4 . . . Fabricators . | . . . . . Repair Stations . | . . . . . Recycling Units 1 | . 1 . . . Scanalyzers . | . . . . . Garrison Access . | . . . . . Total Hacks 13 | . 12 . 1 . Successful 9 | . 8 . 1 . Failed 4 | . 4 . . . Catastrophic . | . . . . . Database Lockouts . | . . . . . Manual 11 | . 10 . 1 . Terminals 10 | . 10 . . . Fabricators . | . . . . . Repair Stations . | . . . . . Recycling Units 2 | . 2 . . . Scanalyzers . | . . . . . Garrison Access . | . . . . . Terminal Hacks 4 | . 3 . 1 . Branch Access Points 1 | . 1 . . . Hauler Manifests 1 | . 1 . . . Registered Prototypes 1 | . 1 . . . Proto ID Catalog 1 | . . . 1 . Fabricator Hacks . | . . . . . Repair Station Hacks . | . . . . . Recycling Unit Hacks 1 | . 1 . . . Report Inventory 1 | . 1 . . . Scanalyzer . | . . . . . Garrison Access Hacks . | . . . . . Unauthorized Hacks 4 | . 4 . . . Terminals 4 | . 4 . . . Botnet 3 | . 3 . . . Operators 1 | . 1 . . . Fabricators . | . . . . . Repair Stations . | . . . . . Recycling Units . | . . . . . Scanalyzers . | . . . . . Garrison Access . | . . . . . Data Cores Recovered 1 | . 1 . . . Used . | . . . . . Hacking Detections 4 | . 4 . . . Full Trace Events . | . . . . . Feedback Events . | . . . . . Feedback Blocked . | . . . . . Robot Schematics Acquired . | . . . . . Robots Built . | . . . . . Authchips . | . . . . . Time . | . . . . . Total Robot Build Rating . | . . . . . Part Schematics Acquired . | . . . . . Parts Built . | . . . . . Authchips . | . . . . . Time . | . . . . . Total Part Build Rating . | . . . . . Parts Repaired . | . . . . . Time . | . . . . . Parts Recycled . | . . . . . Recycled Matter . | . . . . . Retrieved Matter . | . . . . . Retrieved Components . | . . . . . Parts Scanalyzed . | . . . . . Part Schematics Acquired . | . . . . . Parts Damaged . | . . . . . Bothacking | -11 -10 -10 -10 -9 ------------ Run | Yrd Mat Min Exi Min Used RIF Installer . | . . . . . Robots Hacked . | . . . . . Non-combat . | . . . . . Combat . | . . . . . Robot Hacks Applied . | . . . . . Relay Couplers Released . | . . . . . Fabnet Peak Effective % . | . . . . . Robots Rewired . | . . . . . Allies Hacked . | . . . . . Hacks Repelled . | . . . . . Allies | -11 -10 -10 -10 -9 -------- Run | Yrd Mat Min Exi Min Total Allies . | . . . . . Largest Group . | . . . . . Highest-Rated Group . | . . . . . Highest-Rated Ally . | . . . . . Total Orders . | . . . . . Ally Attacks . | . . . . . Total Damage . | . . . . . Kills . | . . . . . Allies Corrupted . | . . . . . Allies Melted . | . . . . . Intel | -11 -10 -10 -10 -9 ------- Run | Yrd Mat Min Exi Min Active Infowar (turns) 1125 | . 940 . 177 8 Sensors 417 | . 417 . . . Seismic 707 | . 523 . 176 8 Cloaking 1 | . . . 1 . Robot Analysis Total . | . . . . . Derelict Logs Recovered . | . . . . . Drone Launches . | . . . . . Drone Recoveries . | . . . . . Exploration | -11 -10 -10 -10 -9 ------------- Run | Yrd Mat Min Exi Min Turns Passed 1795 | 123 1009 233 381 49 Spaces Moved 1064 | 89 573 145 236 21 Core 12 | 4 . . . 8 Treads 1010 | 43 573 145 236 13 Legs . | . . . . . Wheels 42 | 42 . . . . Hover . | . . . . . Flight . | . . . . . Fastest Speed 50 | 50 160 160 160 50 Average Speed 156 | 122 160 160 160 118 Slowest Speed 160 | 160 160 160 160 160 Overloaded Moves . | . . . . . Propulsion Burnouts . | . . . . . Robots Hopped . | . . . . . Potential Cave-ins . | . . . . . Cave-ins Triggered . | . . . . . Exploration Rate (%) 37 | 4 80 34 61 10 Regions Visited 4 Branch Regions 3 Pre-discovered Areas . | . . . . . Known Exits Taken 1 | . 1 . . . Unknown Exits Taken 3 | 1 . 1 1 . Scrap Searched 1 | . . . . 1 Spaces Dug . | . . . . . Terrain Destroyed 59 | . 59 . . . Melee . | . . . . . Projectile . | . . . . . AOE 59 | . 59 . . . Terrain Rammed . | . . . . . Walls Destroyed . | . . . . . Machines Disabled . | . . . . . Actions | -11 -10 -10 -10 -9 --------- Run | Yrd Mat Min Exi Min Total 1154 | 100 622 146 240 46 Wait 20 | . . . . 20 Move 1060 | 88 572 144 235 21 Hop . | . . . . . Pick Up 16 | 6 10 . . . Fast Attach 8 | 4 3 . 1 . Attach 4 | . 1 2 1 . Detach 1 | . . . 1 . Swap 8 | 2 4 . 1 1 Drop 13 | . 9 . 1 3 Fire 23 | . 23 . . . Melee . | . . . . . Ram 1 | . . . . 1 Kick . | . . . . . Crush . | . . . . . Escape Stasis . | . . . . . Rewire . | . . . . . Trap . | . . . . . Miscellaneous . | . . . . . Route ------- -11/Scrapyard -10/Materials (discovered 4 exits: [*Mat x3] / *Min) -10/Mines -10/Exiles (discovered 2 exits: [*Min x2]) -9/Mines History --------- Turn | Location | Event 21 | -11/Scrapyard | Discovered new exit (range 16) 124 | -11/Scrapyard | Entered Materials 318 | -10/Materials | Build established: Mutant 566 | -10/Materials | Discovered new exit (range 3) 753 | -10/Materials | Discovered new exit (range 6) 822 | -10/Materials | Identified exit to Mines 895 | -10/Materials | Discovered new exit (range 12) 1124 | -10/Materials | Derelicts attacked the area 1133 | -10/Materials | Entered Mines 1145 | -10/Mines | Lost 4 parts (1n1u2w) 1355 | -10/Mines | Deemed a non-threat by the Exiles lab entrance 1356 | -10/Mines | Discovered new exit (range 5) 1366 | -10/Mines | Entered Exiles 1392 | -10/Exiles | Discovered new exit (range 15) 1411 | -10/Exiles | Met 8R-AWN 1437 | -10/Exiles | Met EX-HEX 1483 | -10/Exiles | Met EX-BIN 1506 | -10/Exiles | Aligned with FarCom system 1507 | -10/Exiles | Given EX-Vault access code 1555 | -10/Exiles | Opened EX-Vault 1569 | -10/Exiles | Found Cloak of Protection 1605 | -10/Exiles | Warned to stay clear of 0b10 Research branches 1653 | -10/Exiles | Met EX-DEC 1735 | -10/Exiles | Discovered new exit (range 10) 1747 | -10/Exiles | Left Exiles lab with Cloak of Protection 1747 | -10/Exiles | Entered Mines 1748 | -9/Mines | Assembled infested the area 1753 | -9/Mines | Assisted by a Guerilla fighting off Assembled 1791 | -9/Mines | Released all parts (7) 1793 | -9/Mines | Core integrity fell below 50% 1796 | -9/Mines | Destroyed by D-53 Grenadier with Mini Grenade Launcher Last Messages --------------- 01784_ FS-77W(h) destroyed. 01786_ U-05 Engineer lays Concrete. 01789_ The unstable cave ceiling collapses. 01790_ Dropped Med. Storage Unit. 01790_ U-05 Engineer lays Concrete. 01790_ Dropped Imp. Heat Sink. 01791_ Dropped Ion Engine. 01791_ U-05 Engineer builds a Wall. 01791_ Released Lrg. Storage Unit. 01791_ Released Hvy. Hammer. 01791_ Released Lgt. Assault Rifle. 01791_ Released Lgt. Treads. 01791_ Released Ion Engine. 01791_ Released Lgt. Treads. 01791_ Released Lgt. Armor Plating. 01795_ The unstable cave ceiling collapses. 01795_ R-06 Scavenger collects Ion Engine. 01795_ Slammed into as-91281. 01796_ The unstable cave ceiling collapses. 01796_ as-91281 destroyed. Map ----- +----------------------------------------------------+ | ?????????????????????????????????????????????????? | | ?????????????????????????????????????????????????? | | ?????????????????????????????????????????????????? | | ?????????????????????????????????????????????????? | | ?????????????????????????????????????????????????? | | ?????????????????????????????????????????????????? | | ?????????????????????????????????????????????????? | | ?????????????????????????????????????????????????? | | ?????????????????????????????????????????????????? | | ?????????????????????????????????????????????????? | | ?????????????????????????????????????????????????? | | ?????????????????????????????????????????????????? | | ?????????????????????????????????????????????????? | | ?????????????????????????????????????????????????? | | ?????????????????????????????????????????????????? | | ?????????????????????????????????????????????????? | | ?????????????????????????????????????????????????? | | ?????????????????????????????????????????????????? | | ????????????#????????????????????????????????????? | | ????????????# ?????????????#?????????????????????? | | ????????????# ???????????? #?????????????????????? | | ????????##### ??????????? ##????????????????????? | | ???????## # ???????###? #????????????????????? | | ??????## # #?????## # #????????????????????? | | ??????# ?## ## % ##???????????????????? | | ?? # % ## @ #???????????????????? | | ?? % a #??????????????????? | | ?? #??????????????????? | | ?? rd # a #????????????????? | | ?????### dr! # a #???????????????? | | ????????## # # #** ## #??????????????? | | ??????????#???# /!! ####a a a ?????????????? | | ????????# [! ##???# #???????????? | | ????? #????? < ???????????? | | ???? ### #?????? ???????????? | | ????# ???### #??????##### ????????????? | | ????? ???????# ###????????????????????????? | | ????? ?????????#######??????????????????????????? | | ?????????????????????????????????????????????????? | | ?????????????????????????????????????????????????? | | ?????????????????????????????????????????????????? | | ?????????????????????????????????????????????????? | | ?????????????????????????????????????????????????? | | ?????????????????????????????????????????????????? | | ?????????????????????????????????????????????????? | | ?????????????????????????????????????????????????? | | ?????????????????????????????????????????????????? | | ?????????????????????????????????????????????????? | | ?????????????????????????????????????????????????? | | ?????????????????????????????????????????????????? | +----------------------------------------------------+ Best States ------------- Heat Dissipation 25 Energy Generation 10 Energy Capacity 250 Matter Stores 300 Matter Capacity 300 Sight Range 16 Robot Scan Range 14 Terrain Scan Density 10 Cloak Strength 5 Armor Coverage 150 Evasion (%) 42 Recoil Reduction 2 Item Schematics ----------------- None Robot Schematics ------------------ None Fabricated ------------ Nothing Repaired ---------- Nothing Alien Tech Used ----------------- None Achievements -------------- None Challenges ------------ None Game ------ Seed MediumAerolevClaw Manual? 0 Play Time 00:10:56 Cumulative 25.1 hours Start 2025.10.08 @ 23:34:40 End 2025.10.08 @ 23:45:02 Sessions 1 Manual Loads 0 Difficulty Rogue Special Mode None Game No. 68 Rogue 61 Adventurer 7 Explorer 0 Win Type - Total 0 Types 0/0/0/0/0/0/0/0/0/0 Lore% 5 Gallery% 22 Achievement% 22 Wizard Run 0 Options --------- Layout 0 ASCII 0 Keyboard 1 Movement Vi Keybinds 0 Fullscreen 1 Font 18/SmallcapsGlow Map View 112x50 Zoom Use 0% Tactical HUD 1 Map Filters NONE Filters NONE Steam X RUN: a1088e42-875b-4652-9029-aebaaba330d7